bitfinex/quotes_ETHUSD_20240916
["timestamp","ask_amount","ask_price","bid_price","bid_amount"]
[1726524515210,25.10571625,2291.7,2291.6,0.91432862]
[1726524516422,23.14571625,2291.7,2291.6,0.91432862]
[1726524518103,27.74871625,2291.7,2291.6,0.91432862]
[1726524518303,23.14571625,2291.7,2291.6,0.91432862]
[1726524518528,2.4796,2291.4,2291.2,0.0378712]
[1726524518703,0.03000005,2291.3,2291.2,0.0378712]
[1726524519800,1.8414687,2291.3,2291.2,0.30142706]
[1726524519998,13.0677287,2291.3,2291.2,0.30142706]
[1726524520331,14.81089957,2291.3,2291.2,0.0378712]
[1726524520699,14.81089957,2291.3,2291.2,0.30142706]
[1726524520914,14.81089957,2291.3,2291.2,0.0378712]
[1726524523444,22.17522957,2291.3,2291.2,0.0378712]
[1726524530465,17.81089957,2291.3,2291.2,0.0378712]
[1726524530868,17.81089957,2291.3,2291.2,0.30142706]
[1726524531028,17.81089957,2291.3,2291.2,0.0378712]
[1726524531429,22.17522957,2291.3,2291.2,0.0378712]
[1726524539061,22.17522957,2291.3,2291.2,0.30162786]
[1726524539259,22.17522957,2291.3,2291.2,0.0378712]
[1726524539569,22.17522957,2291.3,2291.2,0.30162786]
[1726524539777,22.17522957,2291.3,2291.2,0.0378712]
[1726524540087,22.17522957,2291.3,2291.2,0.30162786]
[1726524540238,22.17522957,2291.3,2291.2,0.0378712]
[1726524540437,22.17522957,2291.3,2291.2,0.30162786]
[1726524540687,22.17522957,2291.3,2291.2,0.0378712]
[1726524540688,13.50183092,2291.3,2291.2,0.0378712]
[1726524541279,15.99463092,2291.3,2291.2,0.0378712]
[1726524543148,20.35896092,2291.3,2291.2,0.0378712]
[1726524544144,13.50183092,2291.3,2291.2,0.0378712]
[1726524544582,20.16206092,2291.3,2291.2,0.0378712]
[1726524544984,15.79773092,2291.3,2291.2,0.0378712]
[1726524545187,20.16206092,2291.3,2291.2,0.0378712]
[1726524545344,15.79773092,2291.3,2291.2,0.0378712]
[1726524547484,20.16206092,2291.3,2291.2,0.0378712]
[1726524550707,22.12206092,2291.3,2291.2,0.0378712]
[1726524551268,26.48639092,2291.3,2291.2,0.0378712]
[1726524551533,27.03940897,2291.3,2291.2,0.0378712]
[1726524551707,27.58940897,2291.3,2291.2,0.0378712]
[1726524551868,28.14710296,2291.3,2291.2,0.0378712]
[1726524552201,32.51143296,2291.3,2291.2,0.0378712]
[1726524552416,18.44258,2290.6,2290.5,0.0378712]
[1726524552568,20.25404865,2290.6,2290.5,0.0378712]
[1726524553280,24.61970865,2290.6,2290.5,0.0378712]
[1726524553477,27.69042069,2290.6,2290.5,0.0378712]
[1726524554702,22.7670667,2290.6,2290.5,0.0378712]
[1726524554880,25.48030437,2290.6,2290.5,0.0378712]
[1726524555289,24.92728632,2290.6,2290.5,0.0378712]
[1726524555804,18.75015767,2290.6,2290.5,0.0378712]
[1726524556119,20.56162632,2290.6,2290.5,0.0378712]
[1726524565996,24.92728632,2290.6,2290.5,0.0378712]
[1726524568207,22.96728632,2290.6,2290.5,0.0378712]
[1726524571547,20.62168632,2290.6,2290.5,0.0378712]
[1726524573540,16.25602632,2290.6,2290.5,2.3409712]
[1726524574637,16.25602632,2290.6,2290.5,2.6068305]
[1726524577444,16.25602632,2290.6,2290.5,0.3037305]
[1726524594971,4.36547,2290.7,2290.5,2.6068305]
[1726524595177,4.36566,2290.6,2290.5,2.6068305]
[1726524597216,8.76132005,2290.6,2290.5,2.6068305]
[1726524597517,10.01459892,2290.6,2290.5,2.6068305]
[1726524597728,5.61893887,2290.6,2290.5,2.6068305]
[1726524598998,4.36566,2290.6,2290.5,2.6068305]
[1726524599501,4.36548,2290.7,2290.5,2.6068305]
[1726524599683,8.73107,2290.7,2290.5,2.6068305]
[1726524600013,4.36548,2290.7,2290.5,2.6068305]
[1726524600800,4.36527,2290.9,2290.5,4.6694905]
[1726524601004,4.36491,2291.0,2290.7,2.3031]
[1726524601728,4.36491,2291.0,2290.8,0.26517696]
[1726524601886,4.36491,2291.0,2290.7,2.3031]
[1726524601887,4.36509,2290.9,2290.7,2.3031]
[1726524602083,4.36509,2290.9,2290.5,0.0378712]
[1726524602084,4.36565,2290.7,2290.5,2.3409712]
[1726524602315,0.03000005,2290.6,2290.5,2.3409712]
[1726524602529,4.39566005,2290.6,2290.5,2.3409712]
[1726524602714,0.03000005,2290.6,2290.5,2.3409712]
[1726524603087,4.39563005,2290.7,2290.5,2.3409712]
[1726524604913,4.39558005,2290.7,2290.5,2.3409712]
[1726524605228,8.76117005,2290.7,2290.5,2.3409712]
[1726524605433,8.76115005,2290.7,2290.5,2.3409712]
[1726524605603,4.39557005,2290.7,2290.5,2.3409712]
[1726524605803,8.76115005,2290.7,2290.5,2.3409712]
[1726524606006,4.39557005,2290.7,2290.5,2.3409712]
[1726524609529,6.17712865,2290.6,2290.5,0.0378712]
[1726524609742,20.3809487,2290.6,2290.5,0.0378712]
[1726524612723,14.20382005,2290.6,2290.5,0.0378712]
[1726524612924,16.0152887,2290.6,2290.5,0.0378712]
[1726524613440,20.3809487,2290.6,2290.5,0.0378712]
[1726524613624,22.85558257,2290.6,2290.5,0.0378712]
[1726524615439,24.81558257,2290.6,2290.5,0.0378712]
[1726524628159,34.09690257,2290.6,2290.5,0.0378712]
[1726524628365,34.61495864,2290.6,2290.5,0.0378712]
[1726524628736,35.55000384,2290.6,2290.5,0.0378712]
[1726524629578,35.03194777,2290.6,2290.5,0.0378712]
[1726524630073,34.48194777,2290.6,2290.5,0.0378712]
[1726524630289,29.18124257,2290.6,2290.5,0.0378712]
[1726524634495,29.73124257,2290.6,2290.5,0.0378712]
[1726524634804,34.09690257,2290.6,2290.5,0.0378712]
[1726524637471,35.03188202,2290.6,2290.5,0.0378712]
[1726524638178,34.09690257,2290.6,2290.5,0.0378712]
[1726524639416,34.09690257,2290.6,2289.8,2.3409712]
[1726524639417,11.734,2289.9,2289.8,2.3409712]
[1726524639699,13.54546865,2289.9,2289.8,2.3409712]
[1726524641964,11.734,2289.9,2289.8,2.3409712]
[1726524642411,11.734,2289.9,2289.8,2.65310506]
[1726524645815,11.734,2289.9,2289.8,0.35000506]
[1726524645816,13.54546865,2289.9,2289.8,0.35000506]
[1726524645982,14.71886865,2289.9,2289.8,0.0378712]
[1726524646712,14.71886865,2289.9,2289.8,0.35004197]
[1726524646916,14.71886865,2289.9,2289.8,0.0378712]
[1726524647079,14.71886865,2289.9,2289.8,0.35004197]
[1726524647279,14.71886865,2289.9,2289.8,0.0378712]
[1726524647495,14.71886865,2289.9,2289.8,0.35004197]
[1726524648202,14.71886865,2289.9,2289.8,0.0378712]
[1726524650017,11.734,2289.9,2289.8,2.3079712]
[1726524650196,11.734,2289.9,2289.8,2.62015839]
[1726524655203,11.734,2289.9,2289.8,0.35005839]
[1726524655398,11.734,2289.9,2289.8,0.0378712]
[1726524655604,12.28062831,2289.9,2289.8,0.0378712]
[1726524661324,11.734,2289.9,2289.8,0.0378712]
[1726524663128,8.734,2289.9,2289.8,0.0378712]
[1726524667232,10.54546865,2289.9,2289.8,0.0378712]
[1726524669149,14.91246865,2289.9,2289.8,0.0378712]
[1726524669334,12.88636865,2289.9,2289.8,0.0378712]
[1726524669642,16.20110552,2289.9,2289.8,0.0378712]
[1726524673682,21.50170552,2289.9,2289.8,0.0378712]
[1726524674970,19.20110552,2289.9,2289.8,0.0378712]
[1726524675946,13.02263687,2289.9,2289.8,0.0378712]
[1726524676683,14.83410552,2289.9,2289.8,0.0378712]
[1726524686598,19.20110552,2289.9,2289.8,0.0378712]
[1726524700730,19.20110552,2289.9,2289.8,2.3409712]
[1726524701897,19.20110552,2289.9,2289.8,0.0378712]
[1726524702025,4.367,2289.9,2289.8,2.3409712]
[1726524702350,8.76400005,2289.9,2289.8,2.3409712]
[1726524702666,8.76400005,2289.9,2289.8,2.65328644]
[1726524708394,4.3667,2290.1,2289.8,2.65328644]
[1726524708545,4.36681,2290.0,2289.8,2.65328644]
[1726524714180,4.36656,2290.2,2289.8,2.65328644]
[1726524715962,4.36653,2290.2,2289.9,2.2729]
[1726524716185,4.36619,2290.4,2289.9,2.2729]
[1726524716363,8.73239,2290.4,2290.1,2.2729]
[1726524716685,8.73239,2290.4,2290.2,0.3113369]
[1726524716686,4.36619,2290.4,2290.2,0.3113369]
[1726524717959,4.36619,2290.4,2290.3,2.2729]
[1726524718407,4.36619,2290.4,2290.3,2.58409083]
[1726524718559,6.17765865,2290.4,2290.3,2.58409083]
[1726524718756,7.26501057,2290.4,2290.3,2.58409083]
[1726524719201,6.2076587,2290.4,2290.3,2.58409083]
[1726524720659,4.39619005,2290.4,2290.3,2.58409083]
[1726524721323,8.76232005,2290.4,2290.3,2.58409083]
[1726524721462,4.36613,2290.4,2290.3,2.58409083]
[1726524721659,4.36613,2290.4,2290.3,2.2729]
[1726524721883,4.36613,2290.4,2290.3,2.58398417]
[1726524729602,4.36596,2290.5,2290.3,2.58398417]
[1726524730417,8.73192,2290.5,2290.3,2.58398417]
[1726524731703,4.36594,2290.5,2290.3,2.58398417]
[1726524731961,8.73189,2290.5,2290.3,2.58398417]
[1726524732525,4.36594,2290.5,2290.3,2.58398417]
[1726524734291,8.73195,2290.5,2290.3,2.58398417]
[1726524734615,4.36604,2290.4,2290.3,2.58398417]
[1726524735000,6.17750865,2290.4,2290.3,0.31108417]
[1726524735184,10.5735487,2290.4,2289.8,6.7080712]
[1726524735525,4.36637,2290.3,2289.9,0.31152088]
[1726524735932,4.36637,2290.3,2289.9,4.67851088]
[1726524737690,4.36604,2290.4,2290.0,2.3031]
[1726524737890,4.39604005,2290.4,2290.0,2.3031]
[1726524738200,4.39604005,2290.4,2290.1,0.31122868]
[1726524738528,8.76221005,2290.4,2290.1,0.31122868]
[1726524738731,4.36604,2290.4,2290.1,0.31122868]
[1726524739989,2.40710005,2290.5,2290.2,2.3031]
[1726524739990,4.36588,2290.5,2290.2,2.3031]
[1726524740345,4.36588,2290.5,2290.3,0.31090783]
[1726524740636,4.36588,2290.5,2290.2,2.3031]
[1726524740847,4.36588,2290.5,2290.3,0.31090783]
[1726524741131,3.0,2290.7,2290.4,2.3031]
[1726524741293,4.36566,2290.6,2290.4,2.3031]
[1726524741492,4.36566,2290.6,2290.5,0.31061162]
[1726524741493,9.904609,2290.6,2290.5,0.31061162]
[1726524742121,9.904609,2290.6,2290.2,2.3031]
[1726524742693,9.904609,2290.6,2290.3,0.31090372]
[1726524742916,5.538769,2290.6,2290.3,0.31090372]
[1726524743121,9.904529,2290.6,2290.2,2.3031]
[1726524743328,9.904529,2290.6,2290.4,0.31075767]
[1726524743542,9.904529,2290.6,2290.3,0.31090372]
[1726524743698,4.36566,2290.6,2290.2,2.3031]
[1726524744137,4.36566,2290.6,2290.3,0.31090372]
[1726524744455,4.36566,2290.6,2290.2,2.3031]
[1726524744633,4.36548,2290.7,2290.4,2.2542]
[1726524744795,4.36548,2290.7,2290.5,0.31059932]
[1726524746127,4.36566,2290.6,2290.5,0.31059932]
[1726524748910,4.3655,2290.7,2290.5,0.31059932]
[1726524749646,4.36566,2290.6,2290.5,0.31059932]
[1726524751964,4.3655,2290.7,2290.5,0.31059932]
[1726524752164,5.27538072,2290.7,2290.5,0.31059932]
[1726524753439,9.64104072,2290.7,2290.5,0.31059932]
[1726524753731,9.64100072,2290.7,2290.5,0.31059932]
[1726524754065,5.27538072,2290.7,2290.5,0.31059932]
[1726524754362,4.36566,2290.6,2290.5,0.31059932]
[1726524757436,13.94619277,2290.6,2290.5,0.31059932]
[1726524757756,6.77611,2290.0,2289.8,0.0378712]
[1726524757971,0.677611,2289.9,2289.8,0.0378712]
[1726524758262,8.58757865,2290.0,2289.8,0.0378712]
[1726524758263,12.95455865,2290.0,2289.8,0.0378712]
[1726524758466,8.58757865,2290.0,2289.8,0.0378712]
[1726524759081,11.14304,2290.0,2289.8,0.0378712]
[1726524759953,6.77611,2290.0,2289.8,0.0378712]
[1726524760152,11.14303,2290.0,2289.8,0.0378712]
[1726524760349,11.72966299,2290.0,2289.8,0.0378712]
[1726524761451,7.36274299,2290.0,2289.8,0.0378712]
[1726524761650,11.72966299,2290.0,2289.8,0.0378712]
[1726524761837,4.36674,2290.1,2289.9,0.29063234]
[1726524762041,4.36674,2290.1,2289.9,2.59373234]
[1726524764346,4.36653,2290.2,2289.9,2.59373234]
[1726524765290,8.73305,2290.2,2289.9,2.59373234]
[1726524765447,4.36652,2290.2,2289.9,2.59373234]
[1726524766947,8.73304,2290.2,2289.9,2.59373234]
[1726524768181,8.73306,2290.2,2289.9,2.59373234]
[1726524768387,4.36662,2290.1,2289.9,2.59373234]
[1726524768541,4.36662,2290.1,2289.9,0.29063234]
[1726524772595,6.75122,2290.1,2289.9,0.29063234]
[1726524772790,4.36662,2290.1,2289.9,0.29063234]
[1726524778374,4.36681,2290.0,2289.9,0.29063234]
[1726524779994,8.73341,2290.1,2289.9,0.29063234]
[1726524780476,4.36681,2290.0,2289.9,0.29063234]
[1726524781458,4.36662,2290.1,2289.9,0.29063234]
[1726524781917,4.3666,2290.2,2290.0,2.2804]
[1726524782066,4.36654,2290.2,2290.0,2.2804]
[1726524782271,4.36654,2290.2,2290.0,2.57109713]
[1726524782999,4.36662,2290.1,2290.0,2.57109713]
[1726524784575,4.36645,2290.2,2290.0,2.57109713]
[1726524784824,8.73303,2290.2,2290.0,2.57109713]
[1726524786471,4.36662,2290.1,2290.0,2.57109713]
[1726524789843,4.36662,2290.1,2290.0,2.52109713]
[1726524794343,4.36662,2290.1,2290.0,0.29069713]
[1726524794573,5.239927,2290.1,2290.0,0.29069713]
[1726524794713,0.90330705,2290.1,2289.8,0.0378712]
[1726524794913,4.367,2289.9,2289.8,0.0378712]
[1726524795237,6.7989,2289.9,2289.8,0.0378712]
[1726524804854,6.7989,2289.9,2289.8,0.32884434]
[1726524805397,11.1659,2289.9,2289.8,0.32884434]
[1726524805558,12.55096757,2289.9,2289.8,0.32884434]
[1726524807370,8.18396757,2289.9,2289.8,0.32884434]
[1726524807690,6.7989,2289.9,2289.8,0.32884434]
[1726524807992,4.3667,2290.1,2289.8,2.58194434]
[1726524809395,4.36666,2290.1,2289.8,2.58194434]
[1726524811500,4.36618,2290.4,2289.9,2.2531]
[1726524811657,4.36627,2290.3,2289.9,6.61993]
[1726524811854,8.409415,2290.3,2289.9,2.2531]
[1726524812065,11.16256,2290.3,2290.0,0.2907012]
[1726524812602,4.36644,2290.2,2290.0,0.2907012]
[1726524812891,6.79617,2290.3,2290.0,0.2907012]
[1726524813098,4.36627,2290.3,2290.0,0.2907012]
[1726524829388,8.73259,2290.3,2290.0,0.2907012]
[1726524829830,4.36615,2290.4,2290.0,0.2907012]
[1726524830127,4.36615,2290.4,2290.1,2.2531]
[1726524830520,4.36615,2290.4,2290.2,0.29029949]
[1726524853139,4.36614,2290.4,2290.2,0.29029949]
[1726524859283,4.36624,2290.3,2290.2,0.29029949]
[1726524859574,4.36614,2290.4,2290.2,0.29029949]
[1726524861479,8.73227,2290.4,2290.2,0.29029949]
[1726524861681,4.36613,2290.4,2290.2,0.29029949]
[1726524862581,8.73228,2290.4,2290.2,0.29029949]
[1726524862746,4.36613,2290.4,2290.2,0.29029949]
[1726524863780,13.0345487,2290.3,2290.2,0.29029949]
[1726524864013,20.4007887,2290.3,2290.2,0.29029949]
[1726524864177,11.1946,2289.9,2289.8,0.0378712]
[1726524864384,13.00606865,2289.9,2289.8,0.0378712]
[1726524864719,19.11035752,2289.9,2289.8,0.0378712]
[1726524866185,14.74335752,2289.9,2289.8,0.0378712]
[1726524866412,12.93188887,2289.9,2289.8,0.0378712]
[1726524866770,8.56488887,2289.9,2289.8,0.32886872]
[1726524866966,6.10428887,2289.9,2289.8,0.0378712]
[1726524867380,10.47128887,2289.9,2289.8,0.32886872]
[1726524867578,8.734,2289.9,2289.8,0.32886872]
[1726524867879,4.367,2289.9,2289.8,0.32886872]
[1726524868872,4.36687,2290.0,2289.8,0.32886872]
[1726524869176,8.73379,2290.0,2289.8,0.32886872]
[1726524869706,4.93935716,2290.0,2289.8,0.32886872]
[1726524870072,9.30627716,2290.0,2289.8,0.32886872]
[1726524871023,4.36687,2290.0,2289.8,0.32886872]
[1726524871202,4.36663,2290.1,2289.8,0.32886872]
[1726524871818,4.36684,2290.0,2289.8,0.32886872]
[1726524873998,8.73376,2290.0,2289.8,0.32886872]
[1726524874206,10.22492987,2290.0,2289.8,0.32886872]
[1726524874687,5.85800987,2290.0,2289.8,0.32886872]
[1726524875493,10.22491987,2290.0,2289.8,0.32886872]
[1726524875696,5.85800987,2290.0,2289.8,0.32886872]
[1726524875906,10.22499987,2290.0,2289.8,0.32886872]
[1726524876091,4.367,2289.9,2289.8,0.32886872]
[1726524879105,4.36684,2290.0,2289.8,0.32886872]
[1726524880014,4.36654,2290.2,2289.8,0.32886872]
[1726524880219,4.36616,2290.4,2289.9,2.2531]
[1726524880394,4.36616,2290.4,2290.0,0.29081886]
[1726524880598,4.36616,2290.4,2290.1,2.2531]
[1726524880803,4.36616,2290.4,2290.2,0.29040089]
[1726524881210,4.36615,2290.4,2290.2,0.29040089]
[1726524882011,4.36614,2290.4,2290.2,0.29040089]
[1726524891533,8.73228,2290.4,2290.2,0.29040089]
[1726524891739,4.36614,2290.4,2290.2,0.29040089]
[1726524892615,8.73228,2290.4,2290.2,0.29040089]
[1726524892816,4.36614,2290.4,2290.2,0.29040089]
[1726524893241,8.73227,2290.4,2290.2,0.29040089]
[1726524893740,4.36613,2290.4,2290.2,0.29040089]
[1726524895001,4.36624,2290.3,2290.2,0.29040089]
[1726524901277,4.36613,2290.4,2290.2,0.29040089]
[1726524901430,14.50234173,2290.8,2290.3,2.2531]
[1726524901776,14.50234173,2290.8,2289.8,7.4049812]
[1726524901777,4.36629,2290.3,2290.0,2.2531]
[1726524902566,6.64646,2290.4,2290.0,2.2531]
[1726524902875,4.36625,2290.3,2290.0,2.2531]
[1726524907050,4.36614,2290.4,2290.0,2.2531]
[1726524907768,4.36591,2290.5,2290.1,2.2531]
[1726524907969,8.73191,2290.5,2290.1,2.2531]
[1726524909987,8.73191,2290.5,2290.2,0.29015344]
[1726524911048,4.36591,2290.5,2290.2,0.29015344]
[1726524914072,6.74179,2290.6,2290.2,0.29015344]
[1726524920008,7.85666173,2290.8,2290.3,2.2531]
[1726524920295,4.36522,2290.9,2290.5,2.2531]
[1726524920661,4.36522,2290.9,2290.6,0.28935835]
[1726524920985,0.436522,2290.8,2290.6,0.28935835]
[1726524921180,4.36539,2290.8,2290.6,0.28935835]
[1726524922796,4.36522,2290.9,2290.6,0.28935835]
[1726524922967,8.73049,2290.9,2290.6,0.28935835]
[1726524923468,4.36522,2290.9,2290.6,0.28935835]
[1726524930073,7.85665574,2291.2,2290.8,1.81146865]
[1726524930273,7.258,2291.4,2290.8,1.81146865]
[1726524930274,4.36433,2291.3,2290.9,2.2531]
[1726524930504,8.72881,2291.3,2290.9,2.54177704]
[1726524930663,4.36433,2291.3,2290.9,2.54177704]
[1726524931126,8.72879,2291.3,2290.9,2.54177704]
[1726524931278,4.36433,2291.3,2290.9,2.54177704]
[1726524931625,8.7288,2291.3,2290.9,2.54177704]
[1726524932117,8.72877,2291.3,2290.9,2.54177704]
[1726524932717,4.36453,2291.2,2290.9,2.54177704]
[1726524934120,4.36453,2291.2,2290.9,2.62906952]
[1726524934680,6.66225,2291.4,2290.9,2.62906952]
[1726524934681,11.02657,2291.4,2290.9,2.62906952]
[1726524934880,4.36442,2291.3,2290.9,2.62906952]
[1726524935218,4.36442,2291.3,2290.9,2.34039248]
[1726524935519,4.36442,2291.3,2291.0,0.28823917]
[1726524936224,6.66225,2291.4,2291.0,0.37553071]
[1726524936225,4.36425,2291.4,2291.0,0.37553071]
[1726524936405,7.4,2291.6,2291.0,6.46449782]
[1726524936611,11.76393,2291.6,2291.1,6.61771]
[1726524936810,4.36397,2291.5,2291.1,2.2531]
[1726524936982,16.12781,2291.6,2291.2,0.28791483]
[1726524937303,11.76388,2291.6,2291.2,0.28791483]
[1726524939158,11.76388,2291.6,2291.3,2.2531]
[1726524939341,4.36388,2291.6,2291.3,2.2531]
[1726524939543,4.36388,2291.6,2291.4,0.28754191]
[1726524940555,4.36357,2291.7,2291.4,0.28754191]
[1726524942258,4.36351,2291.8,2291.4,0.28754191]
[1726524942428,2.2696,2291.9,2291.4,0.28754191]
[1726524942429,4.36311,2292.0,2291.5,2.2531]
[1726524942633,14.10496,2292.1,2291.6,6.17508865]
[1726524942968,14.10496,2292.1,2291.6,0.28722578]
[1726524942969,4.36301,2292.0,2291.6,0.28722578]
[1726524943323,4.36301,2292.0,2291.7,2.2531]
[1726524943528,11.0395,2292.2,2291.7,2.54010696]
[1726524943743,6.67635,2292.4,2291.8,6.26192093]
[1726524943941,6.67635,2292.4,2291.9,2.2531]
[1726524944165,6.67635,2292.4,2291.9,2.53974635]
[1726524944522,6.67635,2292.4,2291.9,6.90289635]
[1726524944726,4.36235,2292.4,2291.9,6.90289635]
[1726524945434,4.36235,2292.4,2291.9,2.53974635]
[1726524947063,4.36235,2292.4,2291.9,6.90292635]
[1726524947375,7.4,2292.5,2292.2,4.36262]
[1726524947557,0.0378712,2292.6,2292.3,2.2531]
[1726524947734,0.0378712,2292.6,2292.3,2.53862833]
[1726524948267,0.0378712,2292.6,2292.3,6.90094833]
[1726524948448,0.0378712,2292.6,2292.3,6.98818493]
[1726524949167,0.0378712,2292.6,2292.3,11.35047493]
[1726524949373,0.0378712,2292.6,2292.3,2.53862833]
[1726524949958,0.0378712,2292.6,2292.3,6.90101833]
[1726524951682,0.0378712,2292.6,2292.3,6.90090833]
[1726524952788,0.0378712,2292.6,2292.3,11.26323833]
[1726524952961,0.0378712,2292.6,2292.3,6.90090833]
[1726524960813,2.3123712,2292.6,2292.3,2.53862833]
[1726524960948,2.3123712,2292.6,2292.3,0.28552833]
[1726524961159,2.3123712,2292.6,2292.2,4.36262]
[1726524961361,2.3123712,2292.6,2292.4,0.28478338]
[1726524961560,2.3123712,2292.6,2292.2,4.36262]
[1726524961797,2.3123712,2292.6,2292.5,0.28463759]
[1726524961963,2.3123712,2292.6,2292.2,4.36262]
[1726524962162,2.3123712,2292.6,2292.5,0.28463759]
[1726524962461,2.3123712,2292.6,2292.2,4.36262]
[1726524962691,2.3123712,2292.6,2292.5,0.28463759]
[1726524962897,2.3123712,2292.6,2292.2,4.36262]
[1726524963127,2.3123712,2292.6,2292.5,0.28463759]
[1726524963400,2.3123712,2292.6,2292.3,0.28492918]
[1726524963728,2.3123712,2292.6,2292.2,4.36262]
[1726524963881,2.3123712,2292.6,2292.4,0.28478338]
[1726524964083,4.36205,2292.5,2292.1,6.6158]
[1726524964282,4.36205,2292.5,2292.0,4.36296]
[1726524964484,2.3794,2292.4,2292.2,0.285075]
[1726524964681,3.16020124,2292.4,2292.1,0.28522082]
[1726524964991,2.3794,2292.4,2292.2,0.28520044]
[1726524965178,2.3794,2292.4,2292.0,4.36288]
[1726524965523,2.3794,2292.4,2292.3,0.28505463]
[1726524965725,2.3794,2292.4,2292.0,4.36288]
[1726524965905,2.3794,2292.4,2292.1,0.28534627]
[1726524966106,2.3794,2292.4,2292.3,0.28505463]
[1726524966587,2.3794,2292.4,2292.0,4.36288]
[1726524966788,2.3794,2292.4,2292.3,0.28505463]
[1726524967001,3.17069124,2292.4,2292.0,4.36288]
[1726524967200,3.17069124,2292.4,2292.3,0.28505463]
[1726524967497,3.17069124,2292.4,2292.0,4.36288]
[1726524967723,3.17069124,2292.4,2292.3,0.28505463]
[1726524967892,3.17069124,2292.4,2292.0,4.36288]
[1726524968098,3.17069124,2292.4,2292.1,0.28534627]
[1726524968910,0.0378712,2292.6,2292.2,2.2531]
[1726524969115,0.0378712,2292.6,2292.3,4.36236]
[1726524969323,0.0378712,2292.6,2292.3,4.64747534]
[1726524969495,0.0378712,2292.6,2292.3,0.28511534]
[1726524969705,0.0378712,2292.6,2292.2,10.97798]
[1726524970013,0.0378712,2292.6,2292.3,0.28511129]
[1726524970213,0.0378712,2292.6,2292.3,4.36242]
[1726524970520,0.0378712,2292.6,2292.4,0.28496549]
[1726524972286,4.3997312,2292.6,2292.4,0.28496549]
[1726524972488,4.3997312,2292.6,2292.5,0.28473875]
[1726524972823,5.51315532,2292.6,2292.2,4.36243]
[1726524972991,4.3997312,2292.6,2292.5,0.28473875]
[1726524973191,4.3997312,2292.6,2292.2,4.36243]
[1726524973387,4.3997312,2292.6,2292.5,0.2847428]
[1726524973595,5.51015532,2292.6,2292.2,4.36243]
[1726524973793,0.0378712,2292.6,2292.5,0.2847428]
[1726524974014,0.0378712,2292.6,2292.3,4.36242]
[1726524974330,0.0378712,2292.6,2292.5,0.2847428]
[1726524974527,0.0378712,2292.6,2292.4,0.28488859]
[1726524975024,0.0378712,2292.6,2292.5,0.2847428]
[1726524975584,0.0378712,2292.6,2292.5,2.09800353]
[1726524975788,0.0378712,2292.6,2292.5,13.71243012]
[1726524976012,0.0378712,2292.6,2292.5,15.73875189]
[1726524977730,0.0378712,2292.6,2292.5,18.73875189]
[1726524978055,0.0378712,2292.6,2292.5,23.10080189]
[1726524978843,7.4,2293.0,2292.9,6.61438]
[1726524979052,0.0378712,2293.2,2293.0,4.36106]
[1726524979407,0.0378712,2293.2,2293.1,0.28375503]
[1726524979609,0.0378712,2293.2,2292.9,6.61438]
[1726524979969,0.0378712,2293.2,2293.1,0.28375503]
[1726524980135,0.0378712,2293.2,2293.0,0.28390075]
[1726524985551,6.7509,2293.1,2293.0,0.28390075]
[1726524985710,2.39,2293.0,2292.2,6.61571]
[1726524985917,4.36176,2292.7,2292.1,8.72536]
[1726524986143,4.36186,2292.6,2292.1,4.36265]
[1726524986343,2.39,2292.5,2292.1,4.36265]
[1726524986664,2.39,2292.5,2292.1,8.72534]
[1726524987487,2.39,2292.5,2292.1,8.72536]
[1726524987825,2.39,2292.7,2292.1,8.28945909]
[1726524988048,2.39,2292.7,2292.3,4.36242]
[1726524988943,6.75168,2292.7,2292.2,4.44985123]
[1726524990274,7.4,2292.9,2292.8,4.36147]
[1726524990429,0.0378712,2293.2,2292.9,4.36127]
[1726524990634,0.0378712,2293.2,2293.0,4.36108]
[1726524990931,0.0378712,2293.2,2293.1,4.44810963]
[1726524991541,0.0378712,2293.2,2293.1,0.08720866]
[1726524991746,0.0378712,2293.2,2293.1,4.3609]
[1726524993333,0.0378712,2293.2,2293.1,8.80900339]
[1726524993536,0.0378712,2293.2,2293.1,10.9749]
[1726524993957,0.0378712,2293.2,2293.1,6.614]
[1726524996570,0.0378712,2293.2,2293.1,4.3609]
[1726524999756,0.0378712,2293.2,2293.1,4.64412503]
[1726525003660,0.0378712,2293.2,2293.1,0.28322503]
[1726525005203,2.4425712,2293.2,2292.9,4.3612]
[1726525005361,2.4425712,2293.2,2292.7,6.61461]
[1726525005362,2.4425712,2293.2,2293.1,0.28322099]
[1726525005563,2.4425712,2293.2,2292.6,4.36176]
[1726525005564,6.76563,2293.1,2292.6,4.36176]
[1726525005801,4.36121,2293.0,2292.7,0.28380392]
[1726525006095,4.36121,2293.0,2292.6,4.36185]
[1726525006305,4.36121,2293.0,2292.8,0.28365817]
[1726525006509,11.12671,2293.1,2292.7,0.28380392]
[1726525006670,11.12664,2293.1,2292.9,0.28351243]
[1726525006875,11.12664,2293.1,2292.6,4.36185]
[1726525007076,7.88208112,2293.1,2293.0,0.2833667]
[1726525007303,7.88208112,2293.1,2292.6,4.36185]
[1726525007472,7.88208112,2293.1,2293.0,0.2833667]
[1726525007667,12.24309112,2293.1,2292.6,4.36185]
[1726525007907,6.76563,2293.1,2293.0,0.2833667]
[1726525008113,6.76563,2293.1,2292.6,4.36185]
[1726525008314,6.76563,2293.1,2293.0,0.2833667]
[1726525008770,6.76563,2293.1,2292.6,4.36185]
[1726525008977,6.76563,2293.1,2292.7,0.28380392]
[1726525010115,2.4047,2293.1,2292.7,8.57221301]
[1726525010407,11.0517412,2293.2,2292.7,10.82531301]
[1726525010614,6.6909012,2293.2,2292.7,6.89850392]
[1726525011013,11.0517412,2293.2,2292.7,6.89850392]
[1726525011782,6.6909012,2293.2,2292.7,6.89850392]
[1726525013015,11.0517112,2293.2,2292.7,6.89850392]
[1726525013214,6.6909012,2293.2,2292.8,4.36146]
[1726525013403,6.6909012,2293.2,2292.9,0.28381581]
[1726525013601,2.3301712,2293.2,2292.9,0.28381581]
[1726525014213,6.6908912,2293.2,2292.9,0.28381581]
[1726525014522,6.6908912,2293.2,2292.7,6.61473]
[1726525014734,6.6908912,2293.2,2293.0,0.28367008]
[1726525015032,6.6908912,2293.2,2293.1,0.28352437]
[1726525015226,6.6908912,2293.2,2292.7,6.61473]
[1726525015392,6.6908912,2293.2,2293.1,0.28352437]
[1726525015600,6.6908912,2293.2,2292.7,6.61473]
[1726525015800,6.6908912,2293.2,2293.1,0.28352437]
[1726525016002,6.6908912,2293.2,2292.7,6.61473]
[1726525016233,6.6908912,2293.2,2293.1,0.28352437]
[1726525016402,6.6908912,2293.2,2292.7,6.61473]